fUST/lending_fUST_20240218
["ID","MTS","AMOUNT","RATE_DAILY","PERIOD"]
[314345881,1708209039660,-500.0,0.00027945,2]
[314345882,1708209039670,-500.0,0.00027945,2]
[314345883,1708209039679,-500.0,0.00027945,2]
[314345884,1708209039689,-4138.22,0.00027945,2]
[314345885,1708209039698,-500.0,0.00027945,2]
[314345886,1708209039708,-927.38,0.00027945,2]
[314345887,1708209039718,-500.0,0.00027945,2]
[314345888,1708209039727,-500.0,0.00027945,2]
[314345889,1708209039737,-500.0,0.00027945,2]
[314345890,1708209039746,-500.0,0.00027945,2]
[314345891,1708209039755,-500.0,0.00027945,2]
[314345892,1708209039764,-3858.78,0.00027945,2]
[314345893,1708209039774,-1021.07,0.00027945,2]
[314345894,1708209039783,-2869.69,0.00027945,2]
[314345895,1708209039793,-2780.42,0.00027945,2]
[314345896,1708209039802,-2649.89,0.00027945,2]
[314345897,1708209039811,-500.0,0.00027945,2]
[314345898,1708209039820,-748.83,0.00027945,2]
[314345899,1708209039830,-4891.24,0.00027945,2]
[314345900,1708209039840,-500.0,0.00027945,2]
[314345901,1708209039849,-500.0,0.00027945,2]
[314345902,1708209039859,-806.99,0.00027945,2]
[314345903,1708209039869,-500.0,0.00027945,2]
[314345904,1708209039878,-500.0,0.00027945,2]
[314345905,1708209039888,-500.0,0.00027945,2]
[314345906,1708209039897,-500.0,0.00027945,2]
[314345907,1708209039907,-500.0,0.00027945,2]
[314345908,1708209039916,-560.66,0.00027945,2]
[314345909,1708209039926,-500.0,0.00027945,2]
[314345910,1708209039935,-500.0,0.00027945,2]
[314345911,1708209039945,-500.0,0.00027945,2]
[314345912,1708209039954,-500.0,0.00027945,2]
[314345913,1708209039963,-2861.17,0.00027945,2]
[314345914,1708209039972,-500.0,0.00027945,2]
[314345915,1708209039982,-154.98450155,0.00028133,2]
[314345916,1708209039991,-178.826471,0.00028134,2]
[314345917,1708209040001,-160.749557,0.00028134,2]
[314345918,1708209040010,-178.826472,0.00028134,2]
[314345919,1708209040020,-160.749557,0.00028134,2]
[314345920,1708209040030,-178.826471,0.00028134,2]
[314345921,1708209040040,-161.725876,0.00028134,2]
[314345922,1708209040049,-159.773238,0.00028134,2]
[314345923,1708209040059,-179.69446,0.00028134,2]
[314345924,1708209040068,-658.465925,0.00028134,2]
[314345925,1708209040078,-269.541692,0.00028134,2]
[314345926,1708209040087,-500.0,0.00028218,2]
[314345927,1708209040097,-500.0,0.00028218,2]
[314345928,1708209040106,-579.769935,0.00028218,2]
[314345929,1708209040115,-500.0,0.00028218,2]
[314345930,1708209040125,-500.0,0.00028218,2]
[314345931,1708209040135,-862.31,0.00028218,2]
[314345932,1708209040146,-500.0,0.00028218,2]
[314345933,1708209040156,-500.0,0.00028218,2]
[314345934,1708209040165,-500.0,0.00028218,2]
[314345935,1708209040175,-500.0,0.00028218,2]
[314345936,1708209040184,-500.0,0.00028218,2]
[314345937,1708209040194,-505.50491521,0.00028218,2]
[314345938,1708209040203,-500.0,0.00028218,2]
[314345939,1708209040213,-500.0,0.00028218,2]
[314345940,1708209040222,-500.0,0.00028219,2]
[314345941,1708209040232,-685.9,0.00028219,2]
[314345942,1708209040241,-689.26,0.00028219,2]
[314345943,1708209040250,-500.0,0.00028219,2]
[314345944,1708209040260,-500.0,0.00028219,2]
[314345945,1708209040269,-500.0,0.00028219,2]
[314345946,1708209040279,-4138.22,0.00028219,2]
[314345947,1708209040288,-500.0,0.00028219,2]
[314345948,1708209040298,-927.38,0.00028219,2]
[314345949,1708209040307,-500.0,0.00028219,2]
[314345950,1708209040317,-500.0,0.00028219,2]
[314345951,1708209040326,-500.0,0.00028219,2]
[314345952,1708209040336,-500.0,0.00028219,2]
[314345953,1708209040345,-500.0,0.00028219,2]
[314345954,1708209040354,-3858.78,0.00028219,2]
[314345955,1708209040364,-1021.07,0.00028219,2]
[314345956,1708209040374,-2869.69,0.00028219,2]
[314345957,1708209040383,-2780.42,0.00028219,2]
[314345958,1708209040393,-2649.89,0.00028219,2]
[314345959,1708209040402,-500.0,0.00028219,2]
[314345960,1708209040411,-748.83,0.00028219,2]
[314345961,1708209040421,-4891.24,0.00028219,2]
[314345962,1708209040430,-635.23390049,0.00028219,2]
[314345963,1708209040439,-500.0,0.00028219,2]
[314345964,1708209040449,-806.99,0.00028219,2]
[314345965,1708209040459,-500.0,0.00028219,2]
[314345966,1708209040471,-500.0,0.00028219,2]
[314345967,1708209040481,-500.0,0.00028219,2]
[314345968,1708209040490,-517.07370122,0.00028219,2]
[314345969,1708209040499,-500.0,0.00028219,2]
[314345970,1708209040509,-560.66,0.00028219,2]
[314345971,1708209040518,-500.0,0.00028219,2]
[314345972,1708209040527,-500.0,0.00028219,2]
[314345973,1708209040537,-500.0,0.00028219,2]
[314345974,1708209040547,-500.0,0.00028219,2]
[314345975,1708209040556,-2861.17,0.00028219,2]
[314345976,1708209040566,-500.0,0.00028219,2]
[314345977,1708209040575,-179.69446,0.00028486,2]
[314345978,1708209040584,-658.465925,0.00028486,2]
[314345979,1708209040594,-269.541692,0.00028486,2]
[314345980,1708209040603,-458.0464762,0.00028492,2]
[314345981,1708209040612,-500.0,0.00028492,2]
[314345982,1708209040621,-500.0,0.00028492,2]
[314345983,1708209040630,-500.0,0.00028492,2]
[314345984,1708209040640,-862.31,0.00028492,2]
[314345985,1708209040650,-500.0,0.00028492,2]
[314345986,1708209040659,-500.0,0.00028492,2]
[314345987,1708209040668,-500.0,0.00028492,2]
[314345988,1708209040677,-223.7581717,0.00028492,2]
[314345989,1708209040687,-500.0,0.00028492,2]
[314345990,1708209040696,-500.0,0.00028492,2]
[314345991,1708209040705,-500.0,0.00028492,2]
[314345992,1708209040715,-500.0,0.00028493,2]
[314345993,1708209040724,-685.9,0.00028493,2]
[314345994,1708209040733,-689.26,0.00028493,2]
[314345995,1708209040743,-500.0,0.00028493,2]
[314345996,1708209040752,-500.0,0.00028493,2]
[314345997,1708209040760,-500.0,0.00028493,2]
[314345998,1708209040770,-4138.22,0.00028493,2]
[314345999,1708209040779,-500.0,0.00028493,2]
[314346000,1708209040788,-927.38,0.00028493,2]
[314346001,1708209040798,-500.0,0.00028493,2]
[314346002,1708209040807,-500.0,0.00028493,2]
[314346003,1708209040816,-500.0,0.00028493,2]
[314346004,1708209040825,-500.0,0.00028493,2]
[314346005,1708209040834,-500.0,0.00028493,2]
[314346006,1708209040843,-3858.78,0.00028493,2]
[314346007,1708209040853,-1021.07,0.00028493,2]
[314346008,1708209040862,-2869.69,0.00028493,2]
[314346009,1708209040871,-2780.42,0.00028493,2]
[314346010,1708209040890,-2649.89,0.00028493,2]
[314346011,1708209040901,-500.0,0.00028493,2]
[314346012,1708209040910,-748.83,0.00028493,2]
[314346013,1708209040920,-4891.24,0.00028493,2]
[314346014,1708209040930,-500.0,0.00028493,2]
[314346015,1708209040939,-806.99,0.00028493,2]
[314346016,1708209040949,-500.0,0.00028493,2]
[314346017,1708209040958,-500.0,0.00028493,2]
[314346018,1708209040967,-500.0,0.00028493,2]
[314346019,1708209040977,-500.0,0.00028493,2]
[314346020,1708209040986,-560.66,0.00028493,2]
[314346021,1708209040995,-500.0,0.00028493,2]
[314346022,1708209041005,-500.0,0.00028493,2]
[314346023,1708209041015,-500.0,0.00028493,2]
[314346024,1708209041025,-500.0,0.00028493,2]
[314346025,1708209041034,-2861.17,0.00028493,2]
[314346026,1708209041155,-584.0359124,0.00028493,2]
[314346027,1708209041165,-178.826471,0.00028603,2]
[314346028,1708209041174,-500.0,0.00028766,2]
[314346029,1708209041183,-500.0,0.00028766,2]
[314346030,1708209041194,-493.00244291,0.00028766,2]
[314346031,1708209041203,-862.31,0.00028766,2]
[314346032,1708209041212,-500.0,0.00028766,2]
[314346033,1708209041222,-500.0,0.00028766,2]
[314346034,1708209041232,-500.0,0.00028766,2]
[314346035,1708209041241,-500.0,0.00028766,2]
[314346036,1708209041250,-500.0,0.00028766,2]
[314346037,1708209041260,-500.0,0.00028766,2]
[314346038,1708209041269,-685.9,0.00028767,2]
[314346039,1708209041278,-689.26,0.00028767,2]
[314346040,1708209041287,-444.8,0.00028767,2]
[314346041,1708209041296,-500.0,0.00028767,2]
[314346042,1708209041305,-539.16,0.00028767,2]
[314346043,1708209041314,-4138.22,0.00028767,2]
[314346044,1708209041323,-500.0,0.00028767,2]
[314346045,1708209041333,-927.38,0.00028767,2]
[314346046,1708209041342,-500.0,0.00028767,2]
[314346047,1708209041351,-500.0,0.00028767,2]
[314346048,1708209041360,-337.80225645,0.00028767,2]
[314346049,1708209041369,-500.0,0.00028767,2]
[314346050,1708209041378,-500.0,0.00028767,2]
[314346051,1708209041387,-3858.78,0.00028767,2]
[314346052,1708209041396,-1021.07,0.00028767,2]
[314346053,1708209041405,-2869.69,0.00028767,2]
[314346054,1708209041414,-2780.42,0.00028767,2]
[314346055,1708209041423,-2649.89,0.00028767,2]
[314346056,1708209041432,-500.0,0.00028767,2]
[314346057,1708209041441,-748.83,0.00028767,2]
[314346058,1708209041451,-4891.24,0.00028767,2]
[314346059,1708209041460,-500.0,0.00028767,2]
[314346060,1708209041470,-806.99,0.00028767,2]
[314346061,1708209041480,-500.0,0.00028767,2]
[314346062,1708209041489,-500.0,0.00028767,2]
[314346063,1708209041498,-500.0,0.00028767,2]
[314346064,1708209041507,-500.0,0.00028767,2]
[314346065,1708209041516,-560.66,0.00028767,2]
[314346066,1708209041526,-500.0,0.00028767,2]
[314346067,1708209041535,-500.0,0.00028767,2]
[314346068,1708209041544,-155.0,0.00028767,2]
[314346069,1708209041554,-500.0,0.00028767,2]
[314346070,1708209041564,-500.0,0.00028767,2]
[314346071,1708209041572,-2861.17,0.00028767,2]
[314346072,1708209041581,-179.69446,0.00028838,2]
[314346073,1708209041590,-658.465925,0.00028838,2]
[314346074,1708209041599,-269.541692,0.00028838,2]
[314346075,1708209041607,-1675.43472114,0.000289,2]
[314346076,1708209041617,-540.00476438,0.00029,15]
[314346077,1708209041626,-500.0,0.0002904,2]
[314346078,1708209041636,-500.0,0.0002904,2]
[314346079,1708209041645,-862.31,0.0002904,2]
[314346080,1708209041654,-500.0,0.0002904,2]
[314346081,1708209041663,-500.0,0.0002904,2]
[314346082,1708209041672,-645.5992516,0.0002904,2]
[314346083,1708209041681,-500.0,0.0002904,2]
[314346084,1708209041690,-500.0,0.0002904,2]
[314346085,1708209041699,-685.9,0.00029041,2]
[314346086,1708209041708,-689.26,0.00029041,2]
[314346087,1708209041716,-500.0,0.00029041,2]
[314346088,1708209041725,-4138.22,0.00029041,2]
[314346089,1708209041734,-500.0,0.00029041,2]
[314346090,1708209041743,-927.38,0.00029041,2]
[314346091,1708209041752,-500.0,0.00029041,2]
[314346092,1708209041761,-209.56,0.00029041,2]
[314346093,1708209041770,-500.0,0.00029041,2]
[314346094,1708209041779,-3858.78,0.00029041,2]
[314346095,1708209041788,-1021.07,0.00029041,2]
[314346096,1708209041797,-2869.69,0.00029041,2]
[314346097,1708209041806,-2780.42,0.00029041,2]
[314346098,1708209041815,-2649.89,0.00029041,2]
[314346099,1708209041824,-500.0,0.00029041,2]
[314346100,1708209041833,-748.83,0.00029041,2]
[314346101,1708209041842,-4891.24,0.00029041,2]
[314346102,1708209041851,-500.0,0.00029041,2]
[314346103,1708209041861,-806.99,0.00029041,2]
[314346104,1708209041869,-500.0,0.00029041,2]
[314346105,1708209041879,-500.0,0.00029041,2]
[314346106,1708209041888,-500.0,0.00029041,2]
[314346107,1708209041897,-500.0,0.00029041,2]
[314346108,1708209041906,-560.66,0.00029041,2]
[314346109,1708209041915,-500.0,0.00029041,2]
[314346110,1708209041924,-500.0,0.00029041,2]
[314346111,1708209041933,-500.0,0.00029041,2]
[314346112,1708209041942,-444.72726313,0.00029041,2]
[314346113,1708209041951,-2861.17,0.00029041,2]
[314346114,1708209041961,-178.826471,0.00029072,2]
[314346115,1708209041970,-179.69446,0.00029189,2]
[314346116,1708209041979,-658.465925,0.00029189,2]
[314346117,1708209041988,-269.541692,0.00029189,2]
[314346118,1708209041997,-500.0,0.00029314,2]
[314346119,1708209042006,-500.0,0.00029314,2]
[314346120,1708209042014,-862.31,0.00029314,2]
[314346121,1708209042024,-500.0,0.00029314,2]
[314346122,1708209042033,-224.5,0.00029314,2]
[314346123,1708209042042,-500.0,0.00029314,2]
[314346124,1708209042051,-500.0,0.00029314,2]
[314346125,1708209042060,-685.9,0.00029315,2]
[314346126,1708209042069,-689.26,0.00029315,2]
[314346127,1708209042078,-500.0,0.00029315,2]
[314346128,1708209042087,-4138.22,0.00029315,2]
[314346129,1708209042096,-500.0,0.00029315,2]
[314346130,1708209042106,-927.38,0.00029315,2]
[314346131,1708209042115,-500.0,0.00029315,2]
[314346132,1708209042124,-500.0,0.00029315,2]
[314346133,1708209042133,-3858.78,0.00029315,2]
[314346134,1708209042142,-1021.07,0.00029315,2]
[314346135,1708209042151,-2869.69,0.00029315,2]
[314346136,1708209042160,-2780.42,0.00029315,2]
[314346137,1708209042169,-2649.89,0.00029315,2]
[314346138,1708209042179,-500.0,0.00029315,2]
[314346139,1708209042188,-748.83,0.00029315,2]
[314346140,1708209042198,-4891.24,0.00029315,2]
[314346141,1708209042207,-500.0,0.00029315,2]
[314346142,1708209042216,-806.99,0.00029315,2]
[314346143,1708209042225,-500.0,0.00029315,2]
[314346144,1708209042234,-500.0,0.00029315,2]
[314346145,1708209042243,-500.0,0.00029315,2]
[314346146,1708209042252,-500.0,0.00029315,2]
[314346147,1708209042261,-560.66,0.00029315,2]
[314346148,1708209042270,-500.0,0.00029315,2]
[314346149,1708209042279,-500.0,0.00029315,2]
[314346150,1708209042288,-500.0,0.00029315,2]
[314346151,1708209042297,-2861.17,0.00029315,2]
[314346152,1708209042306,-160.749557,0.00029541,2]
[314346153,1708209042315,-178.826472,0.00029541,2]
[314346154,1708209042324,-160.749557,0.00029541,2]
[314346155,1708209042333,-178.826471,0.00029541,2]
[314346156,1708209042342,-179.69446,0.00029541,2]
[314346157,1708209042352,-658.465925,0.00029541,2]
[314346158,1708209042361,-269.541692,0.00029541,2]
[314346159,1708209042370,-178.826471,0.00029541,2]
[314346160,1708209042379,-300.0,0.0002956,2]
[314346161,1708209042388,-500.0,0.00029588,2]
[314346162,1708209042397,-500.0,0.00029588,2]
[314346163,1708209042406,-862.31,0.00029588,2]
[314346164,1708209042415,-500.0,0.00029588,2]
[314346165,1708209042425,-500.0,0.00029588,2]
[314346166,1708209042433,-500.0,0.00029588,2]
[314346167,1708209042442,-160.24275126,0.00029589,3]
[314346168,1708209042451,-685.9,0.00029589,2]
[314346169,1708209042461,-689.26,0.00029589,2]
[314346170,1708209042473,-500.0,0.00029589,2]
[314346171,1708209042482,-4138.22,0.00029589,2]
[314346172,1708209042491,-500.0,0.00029589,2]
[314346173,1708209042501,-927.38,0.00029589,2]
[314346174,1708209042510,-500.0,0.00029589,2]
[314346175,1708209042520,-500.0,0.00029589,2]
[314346177,1708209042530,-3858.78,0.00029589,2]
[314346178,1708209042539,-1021.07,0.00029589,2]
[314346179,1708209042548,-2869.69,0.00029589,2]
[314346180,1708209042558,-2780.42,0.00029589,2]
[314346181,1708209042567,-2649.89,0.00029589,2]
[314346182,1708209042576,-500.0,0.00029589,2]
[314346183,1708209042586,-748.83,0.00029589,2]
[314346185,1708209042595,-4891.24,0.00029589,2]
[314346186,1708209042604,-500.0,0.00029589,2]
[314346187,1708209042613,-806.99,0.00029589,2]
[314346188,1708209042622,-500.0,0.00029589,2]
[314346189,1708209042631,-500.0,0.00029589,2]
[314346190,1708209042641,-500.0,0.00029589,2]
[314346191,1708209042650,-437.865938,0.00029589,2]
[314346192,1708209042659,-560.66,0.00029589,2]
[314346193,1708209042668,-500.0,0.00029589,2]
[314346194,1708209042677,-500.0,0.00029589,2]
[314346195,1708209042686,-500.0,0.00029589,2]
[314346196,1708209042695,-2861.17,0.00029589,2]
[314346197,1708209042704,-500.0,0.00029862,2]
[314346198,1708209042713,-500.0,0.00029862,2]
[314346199,1708209042722,-862.31,0.00029862,2]
[314346200,1708209042731,-500.0,0.00029862,2]
[314346201,1708209042740,-500.0,0.00029862,2]
[314346202,1708209042750,-500.0,0.00029862,2]
[314346204,1708209042759,-685.9,0.00029863,2]
[314346205,1708209042768,-689.26,0.00029863,2]
[314346206,1708209042777,-500.0,0.00029863,2]
[314346207,1708209042787,-4138.22,0.00029863,2]
[314346208,1708209042796,-500.0,0.00029863,2]
[314346209,1708209042805,-927.38,0.00029863,2]
[314346210,1708209042814,-500.0,0.00029863,2]
[314346211,1708209042823,-500.0,0.00029863,2]
[314346212,1708209042832,-3858.78,0.00029863,2]
[314346213,1708209042841,-1021.07,0.00029863,2]
[314346214,1708209042850,-2869.69,0.00029863,2]
[314346215,1708209042859,-2780.42,0.00029863,2]
[314346216,1708209042868,-2649.89,0.00029863,2]
[314346217,1708209042877,-500.0,0.00029863,2]
[314346218,1708209042887,-748.83,0.00029863,2]
[314346219,1708209042896,-4891.24,0.00029863,2]
[314346220,1708209042906,-500.0,0.00029863,2]
[314346222,1708209042915,-806.99,0.00029863,2]
[314346223,1708209042925,-500.0,0.00029863,2]
[314346224,1708209042934,-500.0,0.00029863,2]
[314346225,1708209042943,-500.0,0.00029863,2]
[314346226,1708209042952,-560.66,0.00029863,2]
[314346227,1708209042962,-500.0,0.00029863,2]
[314346229,1708209042971,-500.0,0.00029863,2]
[314346231,1708209042980,-500.0,0.00029863,2]
[314346232,1708209042989,-2861.17,0.00029863,2]
[314346233,1708209042999,-223.0,0.0003,2]
[314346234,1708209043008,-300.0,0.0003008,2]
[314346235,1708209043017,-562.39804003,0.00030136,2]
[314346237,1708209043027,-500.0,0.00030136,2]
[314346238,1708209043036,-685.9,0.00030136,2]
[314346239,1708209043118,-862.31,0.00030136,2]
[314346240,1708209043128,-689.26,0.00030136,2]
[314346241,1708209043137,-500.0,0.00030136,2]
[314346242,1708209043146,-500.0,0.00030136,2]
[314346243,1708209043155,-4138.22,0.00030136,2]
[314346244,1708209043164,-500.0,0.00030136,2]
[314346245,1708209043174,-927.38,0.00030136,2]
[314346246,1708209043183,-500.0,0.00030136,2]
[314346247,1708209043192,-500.0,0.00030136,2]
[314346248,1708209043201,-3858.78,0.00030136,2]
[314346249,1708209043210,-1021.07,0.00030136,2]
[314346250,1708209043219,-2869.69,0.00030136,2]
[314346251,1708209043228,-2780.42,0.00030136,2]
[314346252,1708209043237,-2649.89,0.00030136,2]
[314346253,1708209043245,-500.0,0.00030136,2]
[314346254,1708209043254,-748.83,0.00030136,2]
[314346255,1708209043263,-4891.24,0.00030136,2]
[314346256,1708209043273,-500.0,0.00030136,2]
[314346257,1708209043282,-806.99,0.00030136,2]
[314346258,1708209043291,-500.0,0.00030136,2]
[314346259,1708209043300,-500.0,0.00030136,2]
[314346260,1708209043309,-500.0,0.00030136,2]
[314346261,1708209043318,-560.66,0.00030136,2]
[314346262,1708209043327,-500.0,0.00030136,2]
[314346263,1708209043337,-500.0,0.00030136,2]
[314346264,1708209043346,-500.0,0.00030136,2]
[314346265,1708209043355,-500.0,0.00030136,2]
[314346266,1708209043364,-183.11041211,0.00030136,2]
[314346267,1708209043373,-2861.17,0.00030136,2]
[314346268,1708209043382,-155.0,0.00030137,2]
[314346269,1708209043391,-594.76206182,0.0003031,2]
[314346270,1708209043400,-620.0693369,0.00030397,2]
[314346271,1708209043409,-621.32086794,0.00030405,2]
[314346272,1708209043418,-500.0,0.0003041,2]
[314346273,1708209043428,-685.9,0.0003041,2]
[314346274,1708209043437,-862.31,0.0003041,2]
[314346275,1708209043446,-689.26,0.0003041,2]
[314346276,1708209043455,-500.0,0.0003041,2]
[314346277,1708209043464,-500.0,0.0003041,2]
[314346278,1708209043476,-4138.22,0.0003041,2]
[314346279,1708209043485,-927.38,0.0003041,2]
[314346280,1708209043494,-500.0,0.0003041,2]
[314346281,1708209043503,-3858.78,0.0003041,2]
[314346282,1708209043513,-1021.07,0.0003041,2]
[314346283,1708209043522,-2869.69,0.0003041,2]
[314346284,1708209043531,-2780.42,0.0003041,2]
[314346285,1708209043540,-2649.89,0.0003041,2]
[314346286,1708209043549,-500.0,0.0003041,2]
[314346287,1708209043558,-748.83,0.0003041,2]
[314346288,1708209043567,-4891.24,0.0003041,2]
[314346289,1708209043576,-500.0,0.0003041,2]
[314346290,1708209043585,-806.99,0.0003041,2]
[314346291,1708209043596,-500.0,0.0003041,2]
[314346292,1708209043632,-491.36708487,0.0003041,2]
[314346293,1708209043642,-500.0,0.0003041,2]
[314346294,1708209043651,-560.66,0.0003041,2]
[314346295,1708209043660,-500.0,0.0003041,2]
[314346296,1708209043670,-500.0,0.0003041,2]
[314346297,1708209043680,-500.0,0.0003041,2]
[314346298,1708209043689,-2803.12277461,0.0003041,2]
[314346299,1708209043858,-0.00819368,0.00027397,2]
[314346319,1708209046115,-499.99180632,0.00027397,2]
[314346320,1708209046125,-521.01383545,0.00027671,2]
[314346321,1708209046134,-281.0430101,0.00030409,4]
[314346322,1708209046143,-58.04722539,0.0003041,2]
[314346323,1708209046152,-594.76206181,0.00030449,2]
[314346324,1708209046161,-594.76206181,0.00030589,2]
[314346325,1708209046169,-300.0,0.000306,2]
[314346326,1708209046179,-150.0,0.00030683,2]
[314346327,1708209046187,-500.0,0.00030684,2]
[314346328,1708209046196,-685.9,0.00030684,2]
[314346329,1708209046206,-862.31,0.00030684,2]
[314346331,1708209046215,-689.26,0.00030684,2]
[314346333,1708209046224,-500.0,0.00030684,2]
[314346334,1708209046234,-500.0,0.00030684,2]
[314346335,1708209046242,-4138.22,0.00030684,2]
[314346336,1708209046251,-927.38,0.00030684,2]
[314346338,1708209046260,-500.0,0.00030684,2]
[314346340,1708209046270,-2869.69,0.00030684,2]
[314346342,1708209046279,-1021.07,0.00030684,2]
[314346343,1708209046289,-2780.42,0.00030684,2]
[314346344,1708209046298,-2649.89,0.00030684,2]
[314346345,1708209046307,-500.0,0.00030684,2]
[314346346,1708209046316,-748.83,0.00030684,2]
[314346347,1708209046325,-4891.24,0.00030684,2]
[314346348,1708209046334,-500.0,0.00030684,2]
[314346349,1708209046343,-806.99,0.00030684,2]
[314346350,1708209046352,-500.0,0.00030684,2]
[314346351,1708209046361,-500.0,0.00030684,2]
[314346352,1708209046370,-560.66,0.00030684,2]
[314346353,1708209046380,-500.0,0.00030684,2]
[314346354,1708209046389,-500.0,0.00030684,2]
[314346355,1708209046397,-500.0,0.00030684,2]
[314346356,1708209046406,-2861.17,0.00030684,2]
[314346357,1708209046417,-594.76206181,0.00030728,2]
[314346358,1708209046427,-150.0,0.00030862,2]
[314346359,1708209046437,-594.76206181,0.00030868,2]
[314346360,1708209046446,-152.26079786,0.00030938,2]
[314346361,1708209046457,-212.94145991,0.00030958,2]
[314346362,1708209046468,-685.9,0.00030958,2]
[314346363,1708209046483,-862.31,0.00030958,2]
[314346364,1708209046492,-689.26,0.00030958,2]
[314346365,1708209046502,-500.0,0.00030958,2]
[314346366,1708209046511,-500.0,0.00030958,2]
[314346367,1708209046521,-602.329107,0.00030958,2]
[314346368,1708209046530,-4138.22,0.00030958,2]
[314346369,1708209046540,-232.193313,0.00030958,2]
[314346370,1708209046551,-927.38,0.00030958,2]
[314346371,1708209046561,-232.193313,0.00030958,2]
[314346372,1708209046571,-500.0,0.00030958,2]
[314346373,1708209046581,-2869.69,0.00030958,2]
[314346374,1708209046590,-1021.07,0.00030958,2]
[314346375,1708209046599,-2780.42,0.00030958,2]
[314346376,1708209046608,-2649.89,0.00030958,2]
[314346377,1708209046617,-500.0,0.00030958,2]
[314346378,1708209046625,-748.83,0.00030958,2]
[314346379,1708209046634,-4891.24,0.00030958,2]
[314346380,1708209046643,-485.20339356,0.00030958,2]
[314346381,1708209046652,-806.99,0.00030958,2]
[314346382,1708209046662,-500.0,0.00030958,2]
[314346383,1708209046671,-500.0,0.00030958,2]
[314346384,1708209046680,-560.66,0.00030958,2]
[314346385,1708209046689,-500.0,0.00030958,2]
[314346386,1708209046698,-500.0,0.00030958,2]
[314346387,1708209046707,-500.0,0.00030958,2]
[314346388,1708209046716,-2861.17,0.00030958,2]
[314346389,1708209046725,-7842.68792614,0.00031,2]
[314346437,1708210232262,-273.54659754,0.00025141,2]
[314346439,1708210232272,-154.98450155,0.00025141,2]
[314346441,1708210232282,-3558.66152589,0.00025141,2]
[314346443,1708210232291,-596.72740802,0.00025142,2]
[314346444,1708210232303,-1825.2202633,0.00025142,2]
[314346446,1708210232314,-1686.7154849,0.00025142,2]
[314346448,1708210232325,-1074.99733496,0.00025142,2]
[314346450,1708210232337,-1045.54786973,0.00025142,2]
[314346452,1708210232345,-180.19742829,0.00025142,2]
[314346519,1708210238284,-325.33824744,0.00025142,2]
[314346522,1708210238295,-3187.82659016,0.00025142,2]
[314346524,1708210238304,-4302.99094405,0.00025142,2]
[314346525,1708210238313,-843.0824673,0.00025557,2]
[314346527,1708210238322,-1183.9856604,0.0002562,2]
[314346528,1708210238331,-183.996883,0.00025758,2]
[314346529,1708210238340,-15811.28906207,0.00026082,2]
[314346530,1708210238352,-9088.71093793,0.00026082,2]
[314346531,1708210238362,-397.72492203,0.00027306,3]
[314346532,1708210238370,-1532.88,0.00027387,3]
[314346533,1708210238380,-1000.0,0.00027397,2]
[314346534,1708210238389,-500.0,0.00027397,2]
[314346536,1708210238398,-500.0,0.00027397,2]